bitfinex/quotes_BTCUSD_20220307
["timestamp","ask_amount","ask_price","bid_price","bid_amount"]
[1646668205293,0.375913,39095.0,39092.0,0.063979]
[1646668205488,0.22698886,39094.0,39092.0,0.063979]
[1646668205690,0.40945119,39094.0,39092.0,0.063979]
[1646668205889,0.30582252,39093.0,39089.0,0.127956]
[1646668206090,0.325913,39090.0,39089.0,0.127956]
[1646668206689,0.50867191,39090.0,39089.0,0.127956]
[1646668207289,0.18275891,39090.0,39089.0,0.127956]
[1646668207895,0.57827091,39090.0,39089.0,0.127956]
[1646668208144,0.325913,39089.0,39088.0,0.063977]
[1646668208945,0.05,39090.0,39088.0,0.063977]
[1646668209146,0.05,39091.0,39088.0,0.063977]
[1646668209344,0.05,39091.0,39089.0,0.395512]
[1646668209543,0.05,39091.0,39090.0,0.395512]
[1646668209745,0.05,39091.0,39088.0,0.113977]
[1646668210146,0.05,39091.0,39089.0,0.063965]
[1646668210342,0.05,39091.0,39089.0,0.263765]
[1646668210547,0.06398172,39092.0,39089.0,0.263765]
[1646668210745,0.06398172,39092.0,39090.0,0.504475]
[1646668210946,0.06395661,39096.0,39091.0,0.30582252]
[1646668211155,0.2211083,39101.0,39094.0,0.16114201]
[1646668211345,1.10361266,39106.0,39095.0,0.70133452]
[1646668211346,0.20403588,39103.0,39095.0,0.70133452]
[1646668211545,0.20403588,39103.0,39095.0,0.30582252]
[1646668211791,0.20403588,39103.0,39098.0,0.063948]
[1646668212093,0.06394734,39102.0,39098.0,0.063948]
[1646668212297,0.00128,39105.0,39103.0,0.395512]
[1646668212493,0.00128,39105.0,39104.0,0.70173248]
[1646668212691,55.01277,39110.0,39105.0,0.395512]
[1646668212692,55.0,39110.0,39105.0,0.395512]
[1646668213097,1.35,39109.0,39104.0,0.19563021]
[1646668213294,1.35,39109.0,39105.0,0.446956]
[1646668213592,1.35,39109.0,39106.0,0.02567]
[1646668213794,1.35,39109.0,39107.0,0.39526]
[1646668213994,1.35,39109.0,39106.0,0.127865]
[1646668214195,1.35,39109.0,39107.0,0.1998]
[1646668214592,1.4,39109.0,39107.0,0.1998]
[1646668214994,1.405,39109.0,39107.0,0.1998]
[1646668215193,1.405,39109.0,39107.0,0.2498]
[1646668215642,1.4,39109.0,39107.0,0.2498]
[1646668216239,1.395,39109.0,39107.0,0.1998]
[1646668216439,1.68319148,39109.0,39107.0,0.1998]
[1646668217038,1.68319148,39109.0,39106.0,0.127495]
[1646668217246,0.395269,39107.0,39103.0,0.06433358]
[1646668217440,0.395269,39107.0,39100.0,0.127913]
[1646668217638,0.20741652,39103.0,39100.0,0.127913]
[1646668217838,0.395269,39102.0,39100.0,0.127913]
[1646668218043,0.41298677,39102.0,39099.0,0.127905]
[1646668218242,0.395269,39101.0,39099.0,0.127905]
[1646668218638,0.445269,39101.0,39099.0,0.127905]
[1646668218839,0.449269,39101.0,39099.0,0.127905]
[1646668219293,0.449269,39101.0,39098.0,0.00037561]
[1646668219892,0.449269,39101.0,39098.0,0.00036523]
[1646668220091,0.445269,39101.0,39098.0,0.00036523]
[1646668220492,0.445269,39101.0,39098.0,0.05036523]
[1646668220895,0.444269,39101.0,39098.0,0.05]
[1646668221092,0.444269,39101.0,39098.0,0.11432123]
[1646668221692,0.049,39101.0,39098.0,0.11432123]
[1646668222092,0.045,39101.0,39098.0,0.113956]
[1646668222293,0.05,39105.0,39098.0,0.113956]
[1646668222494,0.05,39105.0,39100.0,0.063944]
[1646668222693,0.56212271,39107.0,39101.0,0.063954]
[1646668222694,0.27682468,39102.0,39101.0,0.063954]
[1646668222893,0.06395324,39103.0,39101.0,0.063954]
[1646668223138,0.395269,39102.0,39101.0,0.063954]
[1646668223338,0.445269,39102.0,39100.0,0.313744]
[1646668223541,0.17858609,39101.0,39100.0,0.31409731]
[1646668223736,0.57385509,39101.0,39100.0,0.31409731]
[1646668224336,0.17858609,39101.0,39100.0,0.31409731]
[1646668224536,0.17858609,39101.0,39100.0,0.313744]
[1646668224938,0.001,39101.0,39100.0,0.313744]
[1646668225139,0.00031684,39107.0,39100.0,1.01665788]
[1646668225338,0.00031684,39107.0,39102.0,0.063935]
[1646668225538,0.00031684,39107.0,39102.0,0.127874]
[1646668225737,1.35,39109.0,39102.0,0.127874]
[1646668225738,0.2868433,39106.0,39102.0,0.127874]
[1646668226039,0.18479733,39104.0,39103.0,0.00035329]
[1646668226241,0.00031687,39107.0,39103.0,0.00035329]
[1646668226637,0.00031687,39107.0,39104.0,0.395269]
[1646668226893,0.00031687,39107.0,39105.0,0.263733]
[1646668227096,1.4,39109.0,39105.0,0.455528]
[1646668227295,1.4,39109.0,39106.0,0.05]
[1646668227296,0.00031688,39107.0,39106.0,0.05]
[1646668227695,0.00031688,39107.0,39105.0,0.305728]
[1646668228198,1.4,39109.0,39105.0,0.305728]
[1646668228395,1.4,39109.0,39106.0,0.1998]
[1646668228596,1.4,39109.0,39106.0,0.455528]
[1646668228597,0.00031688,39108.0,39106.0,0.455528]
[1646668228800,0.00031688,39108.0,39107.0,0.05]
[1646668229395,1.4,39109.0,39107.0,0.05]
[1646668229796,1.40031688,39109.0,39107.0,0.05]
[1646668230636,1.4,39109.0,39107.0,0.05]
[1646668231039,1.403,39109.0,39107.0,0.05]
[1646668231442,1.62838287,39109.0,39107.0,0.05]
[1646668231638,0.395269,39108.0,39107.0,0.05]
[1646668231938,1.403,39109.0,39106.0,0.063934]
[1646668232139,55.48018726,39110.0,39106.0,0.063934]
[1646668232140,55.00031688,39110.0,39107.0,0.74092678]
[1646668232337,55.00031688,39110.0,39107.0,0.5410419]
[1646668232538,55.00031688,39110.0,39107.0,0.73851658]
[1646668232539,54.61677688,39110.0,39107.0,0.73851658]
[1646668232937,54.232921,39110.0,39107.0,0.73851658]
[1646668233138,54.232921,39110.0,39109.0,0.382973]
[1646668233538,54.282921,39110.0,39108.0,0.05]
[1646668233948,0.55754477,39109.0,39103.0,0.00025769]
[1646668234142,0.395269,39109.0,39102.0,0.003]
[1646668234393,0.12791673,39107.0,39103.0,0.00035265]
[1646668234590,0.12791673,39107.0,39103.0,0.12826665]
[1646668234591,0.16831956,39105.0,39103.0,0.12826665]
[1646668234792,0.395269,39104.0,39103.0,0.12826665]
[1646668234989,0.445269,39104.0,39103.0,0.12826665]
[1646668235390,0.445269,39104.0,39103.0,0.063609]
[1646668235692,0.445269,39104.0,39102.0,0.12826365]
[1646668236292,0.445269,39104.0,39103.0,0.063959]
[1646668236494,0.445269,39104.0,39103.0,0.113959]
[1646668236891,0.51422462,39104.0,39103.0,0.063959]
[1646668237091,0.51422462,39104.0,39103.0,0.113959]
[1646668237294,0.055,39104.0,39103.0,0.113959]
[1646668237692,0.005,39104.0,39103.0,0.113959]
[1646668238143,0.21831956,39105.0,39103.0,0.113959]
[1646668238344,0.21831956,39105.0,39103.0,0.241839]
[1646668238544,0.21831956,39105.0,39104.0,0.05]
[1646668238943,0.22231956,39105.0,39104.0,0.05]
[1646668239349,0.004,39105.0,39104.0,0.74750462]
[1646668239548,0.00056993,39105.0,39104.0,0.74750462]
[1646668239747,0.00056993,39105.0,39104.0,0.445269]
[1646668240145,54.232921,39110.0,39104.0,0.445269]
[1646668240452,0.00031647,39107.0,39106.0,0.127851]
[1646668240645,0.00031647,39107.0,39106.0,1.06171062]
[1646668240845,0.00031647,39107.0,39106.0,1.08738062]
[1646668241045,54.232921,39110.0,39106.0,1.08738062]
[1646668241046,54.232921,39110.0,39107.0,0.714851]
[1646668241446,54.232921,39110.0,39107.0,0.778776]
[1646668241650,54.104521,39110.0,39108.0,0.30223562]
[1646668241899,54.104521,39110.0,39109.0,0.459861]
[1646668241900,53.721022,39110.0,39109.0,0.459861]
[1646668242700,53.721022,39110.0,39109.0,0.559861]
[1646668243196,53.1649541,39110.0,39109.0,0.559861]
[1646668243397,53.1649541,39110.0,39109.0,0.534191]
[1646668243800,53.38098906,39110.0,39109.0,0.534191]
[1646668244202,53.1649541,39110.0,39109.0,0.534191]
[1646668244997,53.15917316,39110.0,39109.0,0.534191]
[1646668245639,53.37612005,39110.0,39109.0,0.534191]
[1646668246040,53.37612005,39110.0,39109.0,0.482991]
[1646668246241,53.42612005,39110.0,39109.0,0.482991]
[1646668247542,53.42612005,39110.0,39109.0,0.382991]
[1646668247741,53.42612005,39110.0,39108.0,0.19461396]
[1646668247942,53.42612005,39110.0,39107.0,0.0005]
[1646668248742,53.42612005,39110.0,39108.0,0.395269]
[1646668248940,53.42643573,39110.0,39108.0,0.395269]
[1646668249298,53.42643573,39110.0,39108.0,0.509199]
[1646668249894,53.42612005,39110.0,39108.0,0.509199]
[1646668250294,53.42612005,39110.0,39108.0,0.707799]
[1646668251695,53.20917316,39110.0,39108.0,0.707799]
[1646668253145,53.09589407,39110.0,39109.0,0.33303384]
[1646668253346,52.91869654,39110.0,39109.0,1.11709484]
[1646668253541,51.56831569,39110.0,39109.0,1.31171803]
[1646668253741,50.77621969,39110.0,39109.0,1.42329289]
[1646668254143,50.77621969,39110.0,39109.0,1.00435419]
[1646668254342,50.77621969,39110.0,39109.0,1.26209795]
[1646668254546,50.77289654,39110.0,39109.0,1.26209649]
[1646668254745,50.77289654,39110.0,39109.0,1.08502143]
[1646668254947,50.77289654,39110.0,39109.0,0.89039824]
[1646668255143,50.82289654,39110.0,39109.0,0.74039824]
[1646668255443,50.82289654,39110.0,39109.0,0.58919728]
[1646668255644,50.82289654,39110.0,39109.0,0.382961]
[1646668257693,50.82289654,39110.0,39109.0,0.71486728]
[1646668257991,50.82289654,39110.0,39109.0,0.5960313]
[1646668258191,50.82289654,39110.0,39109.0,0.80233371]
[1646668258393,50.9863895,39110.0,39109.0,0.5217013]
[1646668258590,50.9863895,39110.0,39109.0,0.4960313]
[1646668258791,50.9863895,39110.0,39109.0,0.482961]
[1646668258991,51.26400732,39110.0,39109.0,0.68926341]
[1646668259193,51.26400732,39110.0,39109.0,0.482961]
[1646668259591,50.61894678,39110.0,39109.0,0.482961]
[1646668259994,50.34132896,39110.0,39109.0,0.482961]
[1646668260191,50.34132896,39110.0,39109.0,0.68926341]
[1646668261038,50.34132896,39110.0,39109.0,0.482961]
[1646668261039,50.55055988,39110.0,39109.0,0.482961]
[1646668261837,50.34132896,39110.0,39109.0,0.482961]
[1646668262042,50.177836,39110.0,39109.0,0.508631]
[1646668262243,50.177836,39110.0,39109.0,0.71493341]
[1646668262444,50.177836,39110.0,39109.0,0.81493341]
[1646668262640,50.139236,39110.0,39109.0,0.608631]
[1646668262840,50.127836,39110.0,39109.0,0.608631]
[1646668263440,49.744392,39110.0,39109.0,0.608631]
[1646668263641,48.91038933,39110.0,39109.0,0.608631]
[1646668263842,48.91038933,39110.0,39109.0,0.8032393]
[1646668264040,48.91038933,39110.0,39109.0,0.508631]
[1646668264041,48.52694733,39110.0,39109.0,0.508631]
[1646668264289,48.57694733,39110.0,39109.0,0.508631]
[1646668265293,48.57694733,39110.0,39109.0,0.8662733]
[1646668265493,48.57694733,39110.0,39109.0,0.608531]
[1646668265691,48.57694733,39110.0,39109.0,0.8662733]
[1646668265891,48.57694733,39110.0,39109.0,0.608531]
[1646668266294,48.57694733,39110.0,39109.0,0.582861]
[1646668266295,48.74194342,39110.0,39109.0,0.582861]
[1646668266493,48.69194342,39110.0,39109.0,0.582861]
[1646668266895,48.69194342,39110.0,39109.0,0.482961]
[1646668267094,48.69194342,39110.0,39109.0,0.382961]
[1646668267493,48.86266103,39110.0,39109.0,0.382961]
[1646668268167,48.69194342,39110.0,39109.0,0.382961]
[1646668268365,48.74194342,39110.0,39109.0,0.382961]
[1646668268766,48.74194342,39110.0,39109.0,0.380661]
[1646668268967,48.74174874,39110.0,39109.0,0.380661]
[1646668269565,48.957083,39110.0,39109.0,0.380661]
[1646668271169,48.74174874,39110.0,39109.0,0.58706032]
[1646668271365,48.74174874,39110.0,39109.0,0.380661]
[1646668272193,49.15122758,39110.0,39109.0,0.58718833]
[1646668272596,48.57675265,39110.0,39109.0,0.58718833]
[1646668272794,48.57675265,39110.0,39109.0,0.380661]
[1646668273595,48.8210637,39110.0,39109.0,0.380661]
[1646668273796,48.99103229,39110.0,39109.0,0.57527807]
[1646668273997,48.73082124,39110.0,39109.0,0.57527807]
[1646668275100,48.53885265,39110.0,39109.0,0.57527807]
[1646668275299,48.53885265,39110.0,39109.0,0.67527807]
[1646668275300,48.52694733,39110.0,39109.0,0.67527807]
[1646668275549,47.54968427,39110.0,39109.0,0.98448143]
[1646668275946,47.54968427,39110.0,39109.0,1.03568143]
[1646668276848,47.54968427,39110.0,39109.0,0.72647807]
[1646668277246,47.57359562,39110.0,39109.0,1.03568143]
[1646668277448,47.54968427,39110.0,39109.0,1.03568143]
[1646668278547,47.84110285,39110.0,39109.0,1.03568143]
[1646668279150,47.84110285,39110.0,39109.0,0.57527807]
[1646668279151,48.07008323,39110.0,39109.0,0.57527807]
[1646668279605,47.37498652,39110.0,39109.0,0.380661]
[1646668280407,47.50285184,39110.0,39109.0,0.380661]
[1646668281209,47.55285184,39110.0,39109.0,0.380661]
[1646668281409,47.55285184,39110.0,39109.0,0.395262]
[1646668281611,47.4889176,39110.0,39108.0,0.96434018]
[1646668281915,47.4889176,39110.0,39109.0,0.395262]
[1646668282108,47.4889176,39110.0,39108.0,1.22274863]
[1646668282310,47.4889176,39110.0,39108.0,1.28668063]
[1646668282509,47.19749902,39110.0,39109.0,0.395262]
[1646668282709,47.19749902,39110.0,39109.0,0.380658]
[1646668282911,47.01851864,39110.0,39109.0,0.380658]
[1646668283150,46.95458756,39110.0,39109.0,0.380658]
[1646668283946,47.1357036,39110.0,39109.0,0.380658]
[1646668284347,47.41644157,39110.0,39109.0,0.380658]
[1646668284545,47.1357036,39110.0,39109.0,0.380658]
[1646668284950,46.95458756,39110.0,39109.0,0.380658]
[1646668285346,46.95458756,39110.0,39109.0,0.68986136]
[1646668285547,47.21011728,39110.0,39109.0,0.68986136]
[1646668285751,47.21011728,39110.0,39109.0,0.8844668]
[1646668285949,47.40102791,39110.0,39109.0,0.8844668]
[1646668286349,47.40102791,39110.0,39109.0,0.57526344]
[1646668286796,46.95458756,39110.0,39109.0,0.57526344]
[1646668287000,46.95458756,39110.0,39109.0,0.8844668]
[1646668287598,46.95458756,39110.0,39109.0,0.57526344]
[1646668287799,47.13419002,39110.0,39109.0,0.57526344]
[1646668288201,47.13419002,39110.0,39109.0,0.88523561]
[1646668288404,47.13419002,39110.0,39109.0,0.57526344]
[1646668288602,46.90128756,39110.0,39109.0,1.24978752]
[1646668288808,45.27739059,39110.0,39109.0,1.15957586]
[1646668289006,45.23909059,39110.0,39109.0,0.85869368]
[1646668289201,44.85563259,39110.0,39109.0,0.85869368]
[1646668289401,44.47216959,39110.0,39109.0,0.85869368]
[1646668289601,44.66845401,39110.0,39109.0,0.85869368]
[1646668289801,44.24798301,39110.0,39109.0,0.85869368]
[1646668290202,44.29798301,39110.0,39109.0,0.85869368]
[1646668290403,44.29798301,39110.0,39109.0,1.02978336]
[1646668290651,44.29798301,39110.0,39109.0,0.97858336]
[1646668290849,44.29798301,39110.0,39109.0,1.32705773]
[1646668291058,44.29798301,39110.0,39109.0,0.74635312]
[1646668291253,44.29798301,39110.0,39109.0,0.86155874]
[1646668291650,44.29798301,39110.0,39109.0,0.69046906]
[1646668293252,44.29798301,39110.0,39109.0,0.380658]
[1646668293253,44.57235644,39110.0,39109.0,0.380658]
[1646668294698,44.57235644,39110.0,39109.0,0.57523947]
[1646668295700,44.29798301,39110.0,39109.0,0.57523947]
[1646668297001,44.29798301,39110.0,39109.0,1.01096548]
[1646668298252,44.29798301,39110.0,39109.0,0.57523947]
[1646668298653,44.29798301,39110.0,39109.0,0.58800719]
[1646668299053,44.29798301,39110.0,39109.0,1.02374495]
[1646668299656,42.81458817,39110.0,39109.0,0.76236107]
[1646668299957,42.81458817,39110.0,39109.0,0.86226107]
[1646668299958,42.76878817,39110.0,39109.0,0.86226107]
[1646668300354,41.99527117,39110.0,39109.0,0.86226107]
[1646668300558,42.15250506,39110.0,39109.0,0.91346107]
[1646668300758,42.15250506,39110.0,39109.0,0.86226107]
[1646668301062,42.15250506,39110.0,39109.0,0.67523947]
[1646668301256,42.15250506,39110.0,39109.0,0.97838306]
[1646668301461,42.20250506,39110.0,39109.0,0.97838306]
[1646668301659,42.20250506,39110.0,39109.0,0.61671164]
[1646668302101,42.41818747,39110.0,39109.0,0.61671164]
[1646668302397,42.63049546,39110.0,39109.0,0.61671164]
[1646668303100,42.63049546,39110.0,39109.0,0.97838549]
[1646668303497,42.58049546,39110.0,39109.0,0.68064064]
[1646668303697,42.58049546,39110.0,39109.0,0.78064064]
[1646668303898,42.58049546,39110.0,39109.0,1.14230687]
[1646668304202,42.58049546,39110.0,39109.0,1.04230687]
[1646668304397,42.58049546,39110.0,39109.0,0.97837787]
[1646668304797,42.63049546,39110.0,39109.0,0.97837787]
[1646668304999,42.63049546,39110.0,39109.0,0.57523947]
[1646668305849,42.41818747,39110.0,39109.0,0.57523947]
[1646668306950,42.69393412,39110.0,39109.0,0.57523947]
[1646668308153,42.68811305,39110.0,39109.0,0.57523947]
[1646668309153,42.19668399,39110.0,39109.0,0.57523947]
[1646668309711,42.19668399,39110.0,39109.0,0.9689301]
[1646668309911,42.19668399,39110.0,39109.0,0.60726387]
[1646668310914,42.40766741,39110.0,39109.0,0.60726387]
[1646668311311,42.19668399,39110.0,39109.0,0.60726387]
[1646668311815,40.73895645,39110.0,39109.0,0.60726387]
[1646668312118,39.96661445,39110.0,39109.0,0.72643947]
[1646668312611,39.95894696,39110.0,39109.0,0.72643947]
[1646668312812,40.14142264,39110.0,39109.0,0.86404897]
[1646668313257,40.14142264,39110.0,39109.0,0.76414897]
[1646668313660,40.19142264,39110.0,39109.0,0.76414897]
[1646668314460,40.19142264,39110.0,39109.0,0.71294897]
[1646668316804,40.00894696,39110.0,39109.0,0.71294897]
[1646668317005,39.62549496,39110.0,39109.0,0.76414897]
[1646668317404,39.48738578,39110.0,39109.0,0.76414897]
[1646668317605,38.66130839,39110.0,39109.0,0.76414897]
[1646668317805,38.66020839,39110.0,39109.0,0.76414897]
[1646668318009,38.65360839,39110.0,39109.0,0.76414897]
[1646668318604,38.27019439,39110.0,39109.0,0.76414897]
[1646668319506,38.65543945,39110.0,39109.0,0.76414897]
[1646668319711,38.65543945,39110.0,39109.0,0.86404897]
[1646668320307,38.65543945,39110.0,39109.0,0.76414897]
[1646668320560,38.48002645,39110.0,39109.0,0.76414897]
[1646668320761,38.32019439,39110.0,39109.0,0.76414897]
[1646668321165,38.24529568,39110.0,39109.0,0.76414897]
[1646668321361,37.47966904,39110.0,39109.0,1.89491545]
[1646668321565,33.55035734,39110.0,39109.0,3.29657111]
[1646668321765,32.95183659,39110.0,39109.0,12.00097731]
[1646668322064,31.01649398,39110.0,39109.0,5.72141222]
[1646668322370,29.33373482,39110.0,39109.0,4.10823483]
[1646668322563,28.88791382,39110.0,39109.0,4.07950297]
[1646668322762,27.54318886,39110.0,39109.0,4.20520009]
[1646668322966,26.72499886,39110.0,39109.0,4.37303494]
[1646668323168,26.72499886,39110.0,39109.0,3.38487009]
[1646668323364,26.68660073,39110.0,39109.0,4.16757009]
[1646668323565,26.68660073,39110.0,39109.0,3.04187297]
[1646668323768,25.91982673,39110.0,39109.0,4.19187297]
[1646668323969,25.91982673,39110.0,39109.0,4.21754297]
[1646668324406,25.12677489,39110.0,39109.0,4.21754297]
[1646668324604,24.74342689,39110.0,39109.0,4.21754297]
[1646668324803,23.97677689,39110.0,39109.0,4.21754297]
[1646668325029,23.57474689,39110.0,39109.0,4.21754297]
[1646668325405,22.80805889,39110.0,39109.0,4.21754297]
[1646668325606,22.80737766,39110.0,39109.0,3.25917297]
[1646668325809,22.80737766,39110.0,39109.0,3.03241797]
[1646668325810,23.07908251,39110.0,39109.0,3.03241797]
[1646668326005,23.07908251,39110.0,39109.0,2.03241797]
[1646668326206,23.07908251,39110.0,39109.0,1.93241797]
[1646668326405,23.07908251,39110.0,39109.0,1.51957297]
[1646668326805,23.07908251,39110.0,39109.0,1.54537909]
[1646668327406,22.80737766,39110.0,39109.0,1.54537909]
[1646668327609,22.80640427,39110.0,39109.0,2.54547909]
[1646668328051,22.80640427,39110.0,39109.0,2.64537909]
[1646668328452,22.80640427,39110.0,39109.0,3.42807909]
[1646668328754,22.03965027,39110.0,39109.0,3.57807909]
[1646668328952,21.99266051,39110.0,39109.0,3.42807909]
[1646668329551,20.5639171,39110.0,39109.0,3.45374909]
[1646668329752,20.5639171,39110.0,39109.0,9.21754297]
[1646668329753,19.77993734,39110.0,39109.0,9.21754297]
[1646668330053,19.77993734,39110.0,39109.0,10.32843259]
[1646668330054,18.19791862,39110.0,39109.0,10.32843259]
[1646668330257,14.26336219,39110.0,39109.0,9.99777459]
[1646668330455,13.04322347,39110.0,39109.0,10.14777459]
[1646668330651,13.04322347,39110.0,39109.0,10.34757459]
[1646668330652,11.85289606,39110.0,39109.0,10.34757459]
[1646668330851,11.46957906,39110.0,39109.0,10.34757459]
[1646668331053,11.08624406,39110.0,39109.0,10.37338867]
[1646668331250,10.27895168,39110.0,39109.0,10.37338867]
[1646668331653,9.89560668,39110.0,39109.0,10.37338867]
[1646668332105,9.51228468,39110.0,39109.0,10.37338867]
[1646668332307,9.50238468,39110.0,39109.0,10.37338867]
[1646668332506,7.73892523,39110.0,39109.0,10.37338867]
[1646668332707,7.35230923,39110.0,39109.0,10.37338867]
[1646668332914,6.51878356,39110.0,39109.0,10.3191942]
[1646668333106,5.16482624,39110.0,39109.0,10.43215177]
[1646668333308,4.78154424,39110.0,39109.0,10.43214279]
[1646668333507,4.71766324,39110.0,39109.0,10.43214279]
[1646668333708,4.31207124,39110.0,39109.0,10.43214279]
[1646668334308,3.92873124,39110.0,39109.0,10.3191942]
[1646668334808,3.47041924,39110.0,39109.0,10.3191942]
[1646668335008,3.02301224,39110.0,39109.0,10.3191942]
[1646668335209,2.63971024,39110.0,39109.0,10.3191942]
[1646668335654,2.62761024,39110.0,39109.0,10.3191942]
[1646668335856,2.23930124,39110.0,39109.0,10.3191942]
[1646668336353,1.85595724,39110.0,39109.0,10.3191942]
[1646668337054,1.47260824,39110.0,39109.0,10.3191942]
[1646668337455,1.08926524,39110.0,39109.0,10.3191942]
[1646668337656,0.64481462,39110.0,39109.0,10.3191942]
[1646668338059,0.1150803,39110.0,39109.0,10.3191942]
[1646668338256,0.11252535,39110.0,39109.0,10.3191942]
[1646668338457,0.38362644,39127.0,39111.0,0.80837]
[1646668338662,0.82588897,39127.0,39115.0,1.45]
[1646668338858,0.0033,39128.0,39119.0,0.7827]
[1646668339057,0.0033,39128.0,39125.0,0.1998]
[1646668339315,0.0033,39128.0,39125.0,0.8438419]
[1646668339517,0.0033,39128.0,39126.0,0.1998]
[1646668339715,0.0033,39128.0,39126.0,0.7998]
[1646668340316,0.0033,39128.0,39126.0,0.86368]
[1646668340918,0.0033,39128.0,39127.0,0.0512]
[1646668342120,0.0033,39128.0,39127.0,0.0484]
[1646668342920,0.0025035,39128.0,39127.0,0.0484]
[1646668343154,0.0025035,39128.0,39127.0,0.24292431]
[1646668343756,0.0025035,39128.0,39127.0,0.0484]
[1646668345459,0.00551944,39129.0,39128.0,0.75]
[1646668345657,0.00551944,39129.0,39128.0,0.42820184]
[1646668345862,0.00551944,39129.0,39128.0,0.82272615]
[1646668346057,0.0052077,39129.0,39128.0,0.62820184]
[1646668346263,0.0033,39130.0,39129.0,1.0]
[1646668346264,0.00030202,39130.0,39129.0,1.0]
[1646668346463,0.06088363,39138.0,39129.0,2.27476484]
[1646668346662,0.06088363,39138.0,39131.0,0.5]
[1646668346923,0.06088363,39138.0,39135.0,0.0999]
[1646668347123,0.06088363,39138.0,39136.0,0.42820184]
[1646668347124,0.0011,39138.0,39136.0,0.42820184]
[1646668347327,0.4154,39142.0,39137.0,1.02700184]
[1646668347328,0.4143,39142.0,39137.0,1.02700184]
[1646668347531,0.0011,39143.0,39138.0,1.2908]
[1646668347725,0.0011,39143.0,39141.0,0.1]
[1646668347924,0.0011,39143.0,39142.0,0.0512]
[1646668348124,0.0011,39143.0,39142.0,0.1512]
[1646668348528,0.0011,39143.0,39142.0,0.115052]
[1646668348723,0.0011,39143.0,39142.0,0.715052]
[1646668349024,0.0011,39143.0,39142.0,0.615052]
[1646668349221,0.0011,39143.0,39142.0,0.814952]
[1646668349426,0.0011,39143.0,39142.0,0.314952]
[1646668349623,0.16997048,39143.0,39142.0,0.314952]
[1646668350027,0.36997048,39143.0,39136.0,0.1512]
[1646668350224,0.29116945,39138.0,39136.0,0.0512]
[1646668350423,0.17220535,39137.0,39136.0,0.0512]
[1646668350657,0.05,39137.0,39136.0,0.0512]
[1646668351060,0.24434614,39137.0,39136.0,0.0512]
[1646668351657,0.43290187,39137.0,39136.0,0.0512]
[1646668351861,0.30213393,39137.0,39136.0,0.5]
[1646668352063,0.30213393,39137.0,39136.0,0.116672]
[1646668352064,0.50184687,39137.0,39136.0,0.116672]
[1646668352261,0.50184687,39137.0,39136.0,0.077472]
[1646668352658,0.70184687,39137.0,39135.0,0.03778117]
[1646668353059,0.05,39136.0,39135.0,0.03778117]
[1646668353259,0.21908463,39131.0,39129.0,0.127768]
[1646668353666,0.36908463,39131.0,39127.0,0.127779]
[1646668353862,0.39971294,39129.0,39125.0,0.23265732]
[1646668354060,0.39971294,39129.0,39125.0,0.03813301]
[1646668354061,0.44971294,39129.0,39125.0,0.03813301]
[1646668354307,0.1909728,39127.0,39125.0,0.03813301]
[1646668354509,0.1909728,39127.0,39125.0,0.03850283]
[1646668354708,0.23043705,39127.0,39125.0,0.03850283]
[1646668355709,0.23043705,39127.0,39125.0,0.03813301]
[1646668356313,0.29432705,39127.0,39125.0,0.03813301]
[1646668357211,0.10335425,39127.0,39125.0,0.03813301]
[1646668357614,0.06159031,39127.0,39125.0,0.03799308]
[1646668357813,0.05,39127.0,39126.0,0.1]
[1646668358054,0.063878,39129.0,39127.0,0.063877]
[1646668358558,0.063878,39129.0,39128.0,0.1]
[1646668358961,0.241633,39133.0,39128.0,0.1]
[1646668359160,0.063874,39132.0,39129.0,0.191609]
[1646668359356,0.32774,39138.0,39132.0,0.1]
[1646668359558,0.2003079,39138.0,39133.0,0.063869]
[1646668359957,0.2003079,39138.0,39135.0,0.1]
[1646668360362,0.2,39138.0,39135.0,0.1]
[1646668360558,0.2,39138.0,39136.0,0.06387]
[1646668360759,0.26417696,39138.0,39136.0,0.06387]
[1646668361362,0.26417696,39138.0,39136.0,0.43142174]
[1646668361363,0.00030796,39138.0,39136.0,0.43142174]
[1646668361565,0.0044,39144.0,39137.0,0.0512]
[1646668361812,0.0044,39144.0,39137.0,0.61875174]
[1646668362012,0.00030796,39139.0,39137.0,0.61875174]
[1646668362211,0.00030796,39139.0,39137.0,0.2512]
[1646668362414,0.00030796,39139.0,39138.0,0.0999]
[1646668362615,0.00030796,39139.0,39138.0,0.342675]
[1646668362915,0.0044,39144.0,39138.0,0.442675]
[1646668363112,0.0044,39144.0,39139.0,0.1]
[1646668363113,0.00030796,39140.0,39139.0,0.1]
[1646668363312,0.00030796,39140.0,39139.0,0.215064]
[1646668363712,0.05917596,39141.0,39139.0,0.215064]
[1646668364311,0.05948392,39141.0,39139.0,0.215064]
[1646668365211,0.05917596,39141.0,39139.0,0.215064]
[1646668365860,0.12304596,39141.0,39139.0,0.215064]
[1646668366059,0.11804596,39141.0,39139.0,0.215064]
[1646668366361,0.5177589,39141.0,39139.0,0.163864]
[1646668366561,0.5177589,39141.0,39136.0,0.1]
[1646668366765,0.5177589,39141.0,39135.0,0.03819125]
[1646668366766,0.21813011,39138.0,39135.0,0.03819125]
[1646668366963,0.413886,39137.0,39135.0,0.00035207]
[1646668367161,0.37005525,39136.0,39135.0,0.00035207]
[1646668367661,0.23422331,39136.0,39134.0,0.063886]
[1646668367862,0.23422331,39136.0,39134.0,0.06423807]
[1646668368662,0.17034231,39136.0,39134.0,0.06423807]
[1646668368861,0.17034231,39136.0,39134.0,0.063886]
[1646668370812,0.17034231,39136.0,39135.0,0.1]
[1646668371819,0.17034231,39136.0,39134.0,0.06423889]
[1646668371820,0.37005525,39136.0,39134.0,0.06423889]
[1646668372012,0.08130768,39135.0,39134.0,0.06423889]
[1646668372216,0.22630768,39135.0,39132.0,0.29452431]
[1646668372415,0.063888,39134.0,39132.0,0.1]
[1646668372616,0.2,39133.0,39132.0,0.1]
[1646668372812,0.19936198,39131.0,39130.0,0.15433213]
[1646668373056,0.19936198,39131.0,39129.0,0.19452431]
[1646668373256,0.19936198,39131.0,39127.0,0.36155204]
[1646668373257,0.18458578,39130.0,39127.0,0.36155204]
[1646668373457,0.18458578,39130.0,39128.0,0.36155204]
[1646668373458,0.16701188,39130.0,39128.0,0.36155204]
[1646668373660,0.16701188,39130.0,39128.0,0.48932804]
[1646668374258,0.16701188,39130.0,39129.0,0.1]
[1646668374464,0.35237956,39130.0,39129.0,0.1]